bitfinex-derivatives/quotes_BTCF0:USTF0_20241009
["timestamp","ask_amount","ask_price","bid_price","bid_amount"]
[1728462935220,0.04522927,62118.0,62117.0,0.12516451]
[1728462935425,0.04922927,62118.0,62117.0,0.31516451]
[1728462936014,0.005,62118.0,62117.0,0.39569351]
[1728462936214,0.01,62118.0,62117.0,0.39669351]
[1728462936422,0.3608,62120.0,62119.0,0.080526]
[1728462936618,0.3608,62120.0,62119.0,0.29963003]
[1728462936825,0.3608,62120.0,62119.0,0.20327594]
[1728462937413,0.3608,62120.0,62119.0,0.3526618]
[1728462937618,0.441325,62120.0,62119.0,0.3526618]
[1728462938917,0.442325,62120.0,62119.0,0.3526618]
[1728462939414,0.3618,62120.0,62119.0,0.3526618]
[1728462939813,0.3618,62120.0,62119.0,0.12274994]
[1728462940016,0.442325,62120.0,62119.0,0.21914523]
[1728462940418,0.442325,62120.0,62119.0,0.22014523]
[1728462940624,0.441325,62120.0,62119.0,0.22014523]
[1728462941029,0.441325,62120.0,62119.0,0.30067123]
[1728462941429,0.441325,62120.0,62119.0,0.20427594]
[1728462941821,0.54852822,62120.0,62119.0,0.081526]
[1728462942018,0.54952822,62120.0,62119.0,0.081526]
[1728462942424,0.54952822,62120.0,62119.0,0.080526]
[1728462942624,0.55152822,62120.0,62119.0,0.080526]
[1728462943322,0.47000322,62120.0,62117.0,0.19241457]
[1728462943631,0.10720322,62119.0,62117.0,0.00241457]
[1728462943831,0.080528,62118.0,62117.0,0.00241457]
[1728462944020,0.21773122,62118.0,62117.0,0.00241457]
[1728462946035,0.22173122,62118.0,62117.0,0.00241457]
[1728462947132,0.22473122,62118.0,62117.0,0.00241457]
[1728462948639,0.58553122,62118.0,62117.0,0.00241457]
[1728462949837,0.58553122,62118.0,62117.0,0.12516553]
[1728462949838,0.478328,62118.0,62117.0,0.12516553]
[1728462950346,0.668328,62118.0,62117.0,0.07526553]
[1728462950639,0.668328,62118.0,62114.0,0.08039079]
[1728462950640,0.48296,62117.0,62114.0,0.08039079]
[1728462950830,0.48296,62117.0,62104.0,0.0037]
[1728462950831,0.080541,62108.0,62104.0,0.0037]
[1728462951033,0.080546,62104.0,62103.0,0.01611]
[1728462951529,0.080546,62104.0,62103.0,0.16553753]
[1728462951530,0.111946,62104.0,62103.0,0.16553753]
[1728462951735,0.111946,62104.0,62103.0,0.01611]
[1728462952341,0.112946,62104.0,62103.0,0.02711]
[1728462954244,0.113946,62104.0,62103.0,0.03711]
[1728462956147,0.113946,62104.0,62090.0,0.19]
[1728462956148,0.080561,62093.0,62090.0,0.19]
[1728462956358,0.0334,62104.0,62091.0,0.14944847]
[1728462956359,0.25599413,62092.0,62091.0,0.14944847]
[1728462956650,0.25599413,62092.0,62091.0,0.23826057]
[1728462956651,0.28012056,62092.0,62091.0,0.23826057]
[1728462956946,0.28012056,62092.0,62091.0,0.0888121]
[1728462957142,0.19955956,62092.0,62089.0,1.531]
[1728462957338,0.080563,62091.0,62090.0,0.012]
[1728462957538,0.19955956,62092.0,62091.0,0.080563]
[1728462958244,0.002,62092.0,62091.0,0.092563]
[1728462958947,0.001,62092.0,62091.0,0.092563]
[1728462959249,0.002,62092.0,62091.0,0.102563]
[1728462959742,0.002,62092.0,62091.0,0.292563]
[1728462964854,0.002,62092.0,62091.0,0.44200915]
[1728462965449,0.002,62092.0,62091.0,0.56478734]
[1728462966042,0.3608,62099.0,62098.0,0.080554]
[1728462966348,0.3608,62099.0,62098.0,0.39333219]
[1728462967443,0.3618,62099.0,62098.0,0.39333219]
[1728462968250,0.3628,62099.0,62098.0,0.39633219]
[1728462968554,0.39322849,62111.0,62098.0,1.4794492]
[1728462968555,0.3645,62111.0,62098.0,1.4794492]
[1728462968761,0.080537,62111.0,62110.0,0.19]
[1728462969162,0.080537,62111.0,62110.0,0.31275305]
[1728462969960,0.080537,62111.0,62110.0,0.31575305]
[1728462970354,0.081537,62111.0,62110.0,0.31575305]
[1728462970753,0.001,62111.0,62110.0,0.39629105]
[1728462971060,0.001,62111.0,62110.0,0.49262903]
[1728462971264,0.080528,62118.0,62112.0,0.080534]
[1728462971449,0.080528,62118.0,62116.0,0.19]
[1728462971762,0.00241525,62121.0,62120.0,0.080525]
[1728462972059,0.08293925,62121.0,62120.0,0.19]
[1728462972260,0.12238098,62121.0,62120.0,0.19]
[1728462972751,0.22656581,62121.0,62120.0,0.19]
[1728462973154,0.23456581,62121.0,62120.0,0.19]
[1728462973363,0.09093925,62121.0,62120.0,0.19]
[1728462974263,0.09893925,62121.0,62120.0,0.19]
[1728462974459,0.18781905,62121.0,62120.0,0.19]
[1728462975462,0.33150596,62121.0,62120.0,0.19]
[1728462975662,0.24262616,62121.0,62120.0,0.19]
[1728462975859,0.09893925,62121.0,62120.0,0.19]
[1728462977366,0.01841525,62121.0,62117.0,0.270529]
[1728462977567,0.080528,62118.0,62117.0,0.270529]
[1728462978768,0.085528,62118.0,62117.0,0.29993368]
[1728462979068,0.12497092,62118.0,62117.0,0.29993368]
[1728462979257,0.12497092,62118.0,62117.0,0.21940468]
[1728462980666,0.12997092,62118.0,62117.0,0.21940468]
[1728462981666,0.12997092,62118.0,62117.0,0.02940468]
[1728462981972,0.080532,62115.0,62113.0,0.19]
[1728462982166,0.04944292,62118.0,62110.0,0.080537]
[1728462982167,0.031,62114.0,62110.0,0.080537]
[1728462982371,0.080537,62112.0,62110.0,0.080537]
[1728462982571,0.080538,62110.0,62109.0,0.09330616]
[1728462982764,0.080538,62110.0,62109.0,0.06422062]
[1728462982967,0.080538,62110.0,62109.0,0.01432062]
[1728462983171,0.113338,62110.0,62109.0,0.01432062]
[1728462984076,0.113338,62110.0,62109.0,0.01732062]
[1728462984878,0.113338,62110.0,62109.0,0.003]
[1728462985875,0.113338,62110.0,62109.0,0.007]
[1728462986884,0.080548,62102.0,62099.0,0.02961899]
[1728462987578,0.142648,62102.0,62099.0,0.02961899]
[1728462988778,0.001,62102.0,62101.0,0.09666]
[1728462990177,0.002,62102.0,62101.0,0.09666]
[1728462995271,0.082548,62102.0,62101.0,0.01611]
[1728462998084,0.002,62102.0,62101.0,0.09666]
[1728462998270,0.002,62102.0,62101.0,0.12976]
[1728462998470,0.002,62102.0,62101.0,0.15986]
[1728462999069,0.002,62102.0,62101.0,0.04921]
[1728462999274,0.082548,62102.0,62101.0,0.01611]
[1728463002083,0.082548,62102.0,62101.0,0.20611]
[1728463002276,0.002,62102.0,62101.0,0.28666]
[1728463004582,0.088033,62114.0,62110.0,0.080537]
[1728463004789,0.080534,62113.0,62112.0,0.19]
[1728463008996,0.080534,62113.0,62112.0,0.270535]
[1728463009996,0.080532,62115.0,62112.0,0.19]
[1728463010300,0.3608,62118.0,62116.0,0.08053]
[1728463010501,0.441329,62118.0,62116.0,0.08053]
[1728463010697,0.3608,62118.0,62117.0,0.080529]
[1728463012201,0.3698,62118.0,62117.0,0.080529]
[1728463012601,0.3658,62118.0,62117.0,0.080529]
[1728463012800,0.3708,62118.0,62117.0,0.080529]
[1728463012991,0.080529,62117.0,62114.0,0.19]
[1728463013602,0.080529,62117.0,62114.0,0.270533]
[1728463013804,0.080529,62117.0,62115.0,0.080531]
[1728463014801,0.082529,62117.0,62115.0,0.080531]
[1728463015396,0.084529,62117.0,62115.0,0.080531]
[1728463015598,0.085529,62117.0,62115.0,0.080531]
[1728463016404,0.086529,62117.0,62115.0,0.080531]
[1728463019209,0.006,62117.0,62114.0,0.19]
[1728463019397,0.006,62117.0,62116.0,0.08053]
[1728463020509,0.080525,62120.0,62116.0,0.08053]
[1728463020698,0.002,62117.0,62116.0,0.08053]
[1728463021600,0.008,62117.0,62114.0,0.00108]
[1728463021908,0.080532,62115.0,62113.0,0.080534]
[1728463023192,0.441333,62114.0,62113.0,0.080534]
[1728463023393,0.080536,62112.0,62107.0,0.08035094]
[1728463023593,0.080536,62112.0,62111.0,0.080537]
[1728463024708,0.3608,62114.0,62111.0,0.082537]
[1728463025103,0.3608,62114.0,62113.0,0.08031003]
[1728463025303,0.3608,62114.0,62113.0,0.20306571]
[1728463026199,0.3618,62114.0,62113.0,0.20306571]
[1728463027203,0.442333,62114.0,62113.0,0.20306571]
[1728463027402,0.442333,62114.0,62113.0,0.12275568]
[1728463027806,0.443333,62114.0,62113.0,0.12275568]
[1728463028611,0.443333,62114.0,62113.0,0.20328968]
[1728463028816,0.002,62114.0,62113.0,0.20328968]
[1728463030415,0.002,62114.0,62113.0,0.080534]
[1728463032016,0.082533,62114.0,62113.0,0.080534]
[1728463032420,0.080535,62112.0,62109.0,0.080539]
[1728463032621,0.08054,62109.0,62106.0,0.270543]
[1728463033317,0.08054,62109.0,62106.0,0.19]
[1728463033528,0.08054,62109.0,62107.0,0.080541]
[1728463034313,0.19,62108.0,62103.0,0.02895812]
[1728463034620,0.080547,62103.0,62101.0,0.09666]
[1728463035122,0.080547,62103.0,62101.0,0.12591119]
[1728463036749,0.081547,62103.0,62101.0,0.12991119]
[1728463037343,0.080548,62102.0,62101.0,0.04936119]
[1728463038158,0.080548,62102.0,62101.0,0.02411]
[1728463038752,0.080548,62102.0,62101.0,0.02011]
[1728463038954,0.081548,62102.0,62101.0,0.02011]
[1728463039150,0.082548,62102.0,62101.0,0.02411]
[1728463042456,0.002,62102.0,62101.0,0.29466]
[1728463046755,0.082548,62102.0,62101.0,0.02411]
[1728463050058,0.082548,62102.0,62101.0,0.008]
[1728463050961,0.002,62102.0,62101.0,0.198]
[1728463051152,0.002,62102.0,62101.0,0.27855]
[1728463052152,0.0038,62109.0,62101.0,1.28108]
[1728463052342,0.084337,62112.0,62109.0,0.080539]
[1728463052534,0.080537,62112.0,62109.0,0.080539]
[1728463053631,0.080537,62112.0,62108.0,0.19]
[1728463053839,0.080537,62112.0,62110.0,0.080537]
[1728463054830,0.080537,62112.0,62111.0,0.12275458]
[1728463056531,0.0038,62118.0,62111.0,0.20329158]
[1728463056732,0.441332,62115.0,62113.0,0.19]
[1728463057239,0.080536,62112.0,62111.0,0.002]
[1728463057441,0.673,62112.0,62111.0,0.12475455]
[1728463057635,0.673,62112.0,62111.0,0.12675455]
[1728463057837,0.673,62112.0,62111.0,0.002]
[1728463058342,0.080543,62106.0,62104.0,0.0964027]
[1728463058639,0.080543,62106.0,62105.0,0.21917201]
[1728463058835,0.080543,62106.0,62105.0,0.12276931]
[1728463060242,0.081543,62106.0,62105.0,0.12276931]
[1728463060937,0.082543,62106.0,62105.0,0.12776931]
[1728463061638,0.443343,62106.0,62105.0,0.13276931]
[1728463061845,0.443343,62106.0,62105.0,0.01]
[1728463063344,0.3628,62106.0,62105.0,0.280545]
[1728463067645,0.443343,62106.0,62105.0,0.01]
[1728463069046,0.926383,62106.0,62105.0,0.01]
[1728463069347,1.646383,62106.0,62105.0,0.01]
[1728463069549,1.678683,62106.0,62105.0,0.01]
[1728463074965,0.443343,62106.0,62105.0,0.01]
[1728463082364,0.082543,62106.0,62105.0,0.01]
[1728463082578,0.443343,62106.0,62105.0,0.01]
[1728463086063,0.443343,62106.0,62105.0,0.09045995]
[1728463089170,0.443343,62106.0,62105.0,0.01]
[1728463091172,0.443343,62106.0,62105.0,0.21327332]
[1728463093573,0.443343,62106.0,62105.0,0.09049323]
[1728463093768,0.082543,62106.0,62105.0,0.09049323]
[1728463093977,0.443343,62106.0,62105.0,0.09049323]
[1728463094879,0.443343,62106.0,62105.0,0.21327337]
[1728463095271,0.40303437,62106.0,62105.0,0.13278014]
[1728463095676,0.34660616,62106.0,62105.0,0.13278014]
[1728463096176,0.42714916,62106.0,62105.0,0.13278014]
[1728463096567,0.29500616,62106.0,62105.0,0.40332514]
[1728463096766,0.080538,62111.0,62105.0,0.40332514]
[1728463096767,0.3608,62111.0,62105.0,0.32278014]
[1728463096971,0.3608,62116.0,62110.0,0.270538]
[1728463096972,0.080533,62114.0,62110.0,0.270538]
[1728463097180,0.080533,62114.0,62111.0,0.15608014]
[1728463097380,0.080533,62114.0,62112.0,0.12278014]
[1728463097580,0.080533,62114.0,62111.0,0.0333]
[1728463097581,0.080533,62114.0,62113.0,0.12278014]
[1728463098779,0.080533,62114.0,62113.0,0.21934417]
[1728463099083,0.080533,62114.0,62113.0,0.12278014]
[1728463099789,0.22720363,62114.0,62113.0,0.12278014]
[1728463100477,0.18775544,62114.0,62113.0,0.12278014]
[1728463102779,0.080543,62106.0,62105.0,0.00104]
[1728463102980,0.441343,62106.0,62102.0,0.0335]
[1728463103279,0.080546,62104.0,62102.0,0.0335]
[1728463103478,0.028946,62104.0,62102.0,0.0335]
[1728463103682,0.05036562,62114.0,62113.0,0.080534]
[1728463103884,0.04944562,62114.0,62113.0,0.992134]
[1728463104077,0.04944562,62114.0,62113.0,1.475134]
[1728463104273,0.04944562,62114.0,62113.0,2.975134]
[1728463104476,0.04944562,62114.0,62113.0,0.992134]
[1728463105288,0.0888872,62114.0,62113.0,0.992134]
[1728463105483,0.11999897,62114.0,62113.0,0.992134]
[1728463106491,0.04944562,62114.0,62113.0,0.992134]
[1728463106790,0.14365903,62119.0,62116.0,0.08053]
[1728463107085,0.14365903,62119.0,62113.0,0.00116]
[1728463107086,0.08053,62116.0,62113.0,0.00116]
[1728463107284,0.08053,62116.0,62115.0,0.080532]
[1728463107482,0.3608,62118.0,62117.0,0.080529]
[1728463107689,0.14365903,62119.0,62118.0,0.080528]
[1728463108190,0.14665903,62119.0,62118.0,0.080528]
[1728463109680,0.14665903,62119.0,62118.0,0.924288]
[1728463109987,0.15962115,62124.0,62118.0,1.558988]
[1728463110179,0.17558326,62129.0,62123.0,0.631321]
[1728463110374,0.032,62136.0,62128.0,0.631315]
[1728463110581,0.032,62136.0,62135.0,0.080506]
[1728463111174,0.0037,62148.0,62135.0,0.080506]
[1728463111175,0.0037,62148.0,62135.0,1.0828]
[1728463111378,0.08144701,62150.0,62147.0,0.19]
[1728463111592,0.080487,62150.0,62147.0,0.19]
[1728463111780,0.3608,62151.0,62147.0,0.19]
[1728463112087,0.080488,62149.0,62147.0,0.19]
[1728463112483,0.080482,62154.0,62150.0,0.080486]
[1728463112683,0.0653,62156.0,62145.0,0.5508]
[1728463112885,0.080485,62151.0,62145.0,0.631292]
[1728463113085,0.080485,62151.0,62145.0,0.5508]
[1728463113389,0.080485,62151.0,62149.0,0.080487]
[1728463113583,0.3608,62152.0,62149.0,0.080487]
[1728463113988,0.3608,62152.0,62150.0,0.080486]
[1728463114583,0.441285,62152.0,62150.0,0.080486]
[1728463114980,0.446285,62152.0,62150.0,0.080486]
[1728463115185,0.080485,62151.0,62150.0,0.080486]
[1728463115486,0.080485,62151.0,62150.0,0.081486]
[1728463115691,0.080485,62151.0,62150.0,0.001]
[1728463117384,0.080485,62151.0,62147.0,0.08049]
[1728463117585,0.092485,62151.0,62150.0,0.002]
[1728463118186,0.282485,62151.0,62150.0,0.002]
[1728463118585,0.276485,62151.0,62150.0,0.001]
[1728463118786,0.282485,62151.0,62150.0,0.002]
[1728463121189,0.012,62151.0,62150.0,0.082486]
[1728463121890,0.012,62151.0,62150.0,0.443286]
[1728463122395,0.012,62151.0,62150.0,0.477586]
[1728463123087,0.012,62151.0,62150.0,0.960266]
[1728463123396,0.012,62151.0,62150.0,0.991566]
[1728463124098,0.0037,62163.0,62160.0,0.080473]
[1728463124297,0.0324,62165.0,62160.0,0.080473]
[1728463124500,0.080469,62163.0,62160.0,0.080473]
[1728463124687,0.0324,62165.0,62160.0,0.080473]
[1728463124886,0.0324,62165.0,62160.0,0.441273]
[1728463125187,0.01641443,62161.0,62160.0,0.442273]
[1728463125585,0.03041443,62161.0,62160.0,0.443273]
[1728463126389,0.03041443,62161.0,62160.0,0.925913]
[1728463126894,0.17694977,62161.0,62160.0,0.66821754]
[1728463127490,0.17453534,62161.0,62160.0,1.34869054]
[1728463127695,0.17453346,62161.0,62160.0,0.74869054]
[1728463127899,0.20631558,62163.0,62160.0,0.74869054]
[1728463127900,0.11131626,62163.0,62162.0,0.563071]
[1728463128299,0.11131626,62163.0,62162.0,1.163071]
[1728463128493,0.0037,62173.0,62172.0,0.080458]
[1728463128802,0.00241289,62176.0,62175.0,0.080454]
[1728463128993,0.3944,62183.0,62180.0,0.080447]
[1728463129189,0.3944,62183.0,62180.0,0.270447]
[1728463129388,0.16109701,62181.0,62180.0,0.270447]
[1728463129590,0.3608,62183.0,62182.0,0.080445]
[1728463129901,0.12959701,62183.0,62182.0,0.080445]
[1728463130301,0.49039701,62183.0,62182.0,0.080445]
[1728463130686,0.49039701,62183.0,62181.0,0.19]
[1728463130687,0.57084101,62183.0,62181.0,0.19]
[1728463131006,0.57084101,62183.0,62182.0,0.011]
[1728463131504,0.12959701,62183.0,62182.0,0.091445]
[1728463131702,0.12959701,62183.0,62182.0,0.023]
[1728463131703,0.57084101,62183.0,62182.0,0.023]
[1728463132999,0.441244,62183.0,62182.0,0.202]
[1728463133197,0.3608,62183.0,62182.0,0.282445]
[1728463133703,0.080438,62188.0,62184.0,0.080442]
[1728463134015,0.080438,62188.0,62182.0,0.213]
[1728463134016,0.21003501,62188.0,62187.0,0.19]
[1728463134190,0.3608,62190.0,62187.0,0.19]
[1728463135105,0.3608,62190.0,62189.0,0.080436]
[1728463135307,0.445027,62197.0,62188.0,0.0316]
[1728463135308,0.36544,62197.0,62188.0,0.514]
[1728463135494,0.36544,62197.0,62196.0,0.19]
[1728463135495,0.49039701,62197.0,62196.0,0.19]
[1728463135695,0.3608,62197.0,62196.0,0.19]
[1728463135910,0.3608,62197.0,62196.0,0.752787]
[1728463136889,0.49039701,62197.0,62193.0,0.19]
[1728463137105,0.12959701,62196.0,62193.0,0.19]
[1728463137403,0.21002401,62196.0,62193.0,0.19]
[1728463137599,0.14646209,62195.0,62193.0,0.27043]
[1728463137999,0.14646209,62195.0,62193.0,0.27943]
[1728463138501,0.22689109,62195.0,62193.0,0.27943]
[1728463139395,0.21002601,62194.0,62193.0,0.009]
[1728463139995,0.12959701,62194.0,62188.0,0.080436]
[1728463140196,0.080429,62194.0,62193.0,0.011]
[1728463140606,0.12959701,62194.0,62193.0,0.091431]
[1728463140802,0.12959701,62194.0,62193.0,0.092431]
[1728463140996,0.14646209,62195.0,62193.0,0.104431]
[1728463141202,0.14646209,62195.0,62194.0,0.080429]
[1728463141394,0.21002601,62194.0,62193.0,0.012]
[1728463141599,0.21002601,62194.0,62193.0,0.025]
[1728463142809,0.21002601,62194.0,62184.0,0.080442]
[1728463142810,0.080438,62188.0,62184.0,0.080442]
[1728463143110,0.14646209,62187.0,62184.0,0.080442]
[1728463143302,0.2064409,62185.0,62184.0,0.080442]
[1728463143498,0.35290299,62185.0,62184.0,0.080442]
[1728463144205,0.35290299,62185.0,62184.0,0.272442]
[1728463144598,0.35292702,62185.0,62184.0,0.272442]
[1728463144802,0.35892702,62185.0,62184.0,0.272442]
[1728463145007,0.006,62185.0,62184.0,0.272442]
[1728463145704,0.006,62185.0,62184.0,1.354882]
[1728463146611,0.0038,62194.0,62193.0,0.080431]
[1728463146813,0.475416,62205.0,62204.0,0.080416]
[1728463147106,0.475416,62205.0,62204.0,0.270416]
[1728463147107,0.441216,62205.0,62204.0,0.270416]
[1728463147306,0.57081301,62205.0,62204.0,0.270416]
[1728463147610,0.3608,62205.0,62204.0,0.270416]
[1728463148399,0.3608,62205.0,62204.0,1.352696]
[1728463148601,0.3618,62205.0,62204.0,1.352696]
[1728463148810,0.080405,62213.0,62204.0,1.352696]
[1728463148811,0.0037,62218.0,62209.0,0.08041]
[1728463149014,0.49039701,62217.0,62216.0,0.19]
[1728463149205,0.49039701,62217.0,62216.0,0.270401]
[1728463149402,0.57079701,62217.0,62216.0,0.19]
[1728463150514,0.49039701,62217.0,62216.0,0.19]
[1728463150703,0.49039701,62217.0,62216.0,0.270401]
[1728463150902,0.49039701,62217.0,62216.0,0.19]
[1728463151097,0.57079701,62217.0,62216.0,0.191]
[1728463151400,0.57079701,62217.0,62216.0,0.001]
[1728463151596,0.57079701,62217.0,62216.0,0.191]
[1728463152806,0.57079701,62217.0,62216.0,0.271401]
[1728463153015,0.49039701,62217.0,62216.0,0.271401]
[1728463155114,0.77709794,62217.0,62216.0,0.19]
[1728463155700,0.77709794,62217.0,62216.0,0.275401]
[1728463157805,0.85749794,62217.0,62216.0,0.005]
[1728463158012,0.76876412,62217.0,62216.0,0.005]
[1728463158212,0.76876412,62217.0,62216.0,0.01]
[1728463159214,0.76876412,62217.0,62216.0,0.2]
[1728463159919,0.64510225,62217.0,62216.0,0.2]
[1728463160116,0.57079701,62217.0,62216.0,0.2]
[1728463161422,0.61017723,62217.0,62216.0,0.2]
[1728463162719,0.60117723,62217.0,62216.0,0.2]
[1728463163920,0.60117723,62217.0,62216.0,0.280401]
[1728463164110,0.65053766,62217.0,62216.0,0.280401]
[1728463165325,0.65053766,62217.0,62216.0,0.2]
[1728463165515,0.65053766,62217.0,62216.0,0.01]
[1728463165516,0.8257696,62217.0,62216.0,0.01]
[1728463166625,0.65053766,62217.0,62216.0,0.01]
[1728463167023,0.65053766,62217.0,62204.0,0.32003715]
[1728463167024,0.12959701,62213.0,62204.0,0.32003715]
[1728463167325,0.26231502,62212.0,62211.0,0.19]
[1728463167623,0.34272102,62212.0,62211.0,0.19]
[1728463168023,0.5837348,62212.0,62204.0,0.3215003]
[1728463168222,0.12959701,62210.0,62206.0,0.19]
[1728463168422,0.12959701,62207.0,62206.0,0.270414]
[1728463168718,0.32758243,62207.0,62206.0,0.270414]
[1728463169317,0.32758243,62207.0,62206.0,0.19]
[1728463169522,0.32758243,62207.0,62206.0,0.191]
[1728463169523,0.49262223,62207.0,62206.0,0.191]
[1728463169716,0.85342223,62207.0,62206.0,0.191]
[1728463170112,0.78279443,62207.0,62206.0,0.192]
[1728463170624,0.86542223,62207.0,62206.0,0.192]
[1728463171025,0.080424,62198.0,62197.0,0.080425]
[1728463171227,0.28061322,62198.0,62197.0,0.080425]
[1728463171427,0.28061322,62198.0,62197.0,0.096515]
[1728463171720,0.28061322,62198.0,62197.0,0.01609]
[1728463172129,0.58991521,62198.0,62197.0,0.01609]
[1728463172429,0.58991521,62198.0,62192.0,0.27858083]
[1728463172430,0.12959701,62195.0,62192.0,0.03564577]
[1728463172619,0.28061322,62194.0,62192.0,0.11607677]
[1728463172820,0.28061322,62193.0,62192.0,0.11607677]
[1728463173021,0.28061322,62193.0,62192.0,0.15366481]
[1728463173423,0.53327963,62193.0,62192.0,0.19]
[1728463173619,0.53327963,62193.0,62192.0,0.19823422]
[1728463173928,0.53327963,62193.0,62192.0,0.27866522]
[1728463174434,0.53327963,62193.0,62192.0,1.77866522]
[1728463175022,0.33529421,62193.0,62192.0,1.77866522]
[1728463176026,0.33629421,62193.0,62192.0,1.77866522]
[1728463176724,0.33529421,62193.0,62192.0,1.77866522]
[1728463176923,0.33629421,62193.0,62192.0,1.77866522]
[1728463181127,0.46589122,62193.0,62192.0,1.580431]
[1728463181524,0.46589122,62193.0,62192.0,1.770431]
[1728463183133,0.49669122,62193.0,62192.0,1.770431]
[1728463185738,0.16139701,62193.0,62192.0,1.770431]
[1728463186326,0.21909431,62193.0,62192.0,1.770431]
[1728463187351,0.16139701,62193.0,62192.0,1.770431]
[1728463187529,0.0318,62193.0,62192.0,1.770431]
[1728463189040,0.001,62193.0,62192.0,1.770431]
[1728463190238,0.28168939,62193.0,62192.0,0.270431]
[1728463191030,0.28168939,62193.0,62192.0,1.510431]
[1728463193939,0.19903585,62193.0,62192.0,1.510431]
[1728463195140,0.19903585,62193.0,62192.0,0.19]
[1728463195345,0.19903585,62193.0,62192.0,0.1665165]
[1728463195941,0.29832043,62193.0,62192.0,0.2469475]
[1728463196142,0.29832043,62193.0,62192.0,1.35090198]
[1728463197138,0.001,62193.0,62192.0,1.35090198]
[1728463203651,0.13059701,62193.0,62192.0,1.35090198]
[1728463204341,0.16199701,62193.0,62192.0,1.35090198]
[1728463205753,0.16199701,62193.0,62192.0,0.18090198]
[1728463206448,0.16099701,62193.0,62192.0,0.18090198]
[1728463206753,0.16199701,62193.0,62192.0,0.18090198]
[1728463208249,0.16299701,62193.0,62192.0,0.18090198]
[1728463208757,0.16399701,62193.0,62192.0,0.18090198]
[1728463209350,0.16299701,62193.0,62192.0,0.18090198]
[1728463209554,0.16499701,62193.0,62192.0,0.18090198]
[1728463209948,0.16299701,62193.0,62192.0,0.18090198]
[1728463210750,0.16199701,62193.0,62192.0,0.18090198]
[1728463210954,0.16399701,62193.0,62192.0,0.18090198]
[1728463215662,0.15399701,62193.0,62192.0,0.18090198]
[1728463216055,0.15299701,62193.0,62192.0,0.18090198]
[1728463216255,0.15199701,62193.0,62192.0,0.18090198]
[1728463216455,0.43469074,62193.0,62192.0,0.270431]
[1728463217163,0.79549074,62193.0,62192.0,0.270431]
[1728463217371,0.53397532,62193.0,62192.0,0.17445082]
[1728463217556,0.89477532,62193.0,62192.0,0.17445082]
[1728463217963,0.53397532,62193.0,62192.0,0.25488182]
[1728463218263,0.89477532,62193.0,62192.0,0.25488182]
[1728463218966,0.43469074,62193.0,62192.0,0.25488182]
[1728463219166,0.15399701,62193.0,62192.0,0.25488182]
[1728463220268,0.04087359,62194.0,62192.0,0.17445082]
[1728463220456,0.0316,62202.0,62199.0,0.080423]
[1728463220760,0.0333,62206.0,62199.0,0.631223]
[1728463221066,0.0333,62206.0,62199.0,1.801223]
[1728463221254,0.0333,62206.0,62205.0,0.080415]
[1728463221454,0.00241163,62211.0,62210.0,0.080409]
[1728463221656,0.00241163,62211.0,62210.0,0.631209]
[1728463221852,0.12200864,62211.0,62210.0,0.631209]
[1728463222569,0.12300864,62211.0,62210.0,0.281409]
[1728463222862,0.08041,62209.0,62206.0,0.19]
[1728463223254,0.11959701,62207.0,62206.0,0.19]
[1728463224058,0.48039701,62207.0,62206.0,0.02832577]
[1728463224364,0.080414,62206.0,62205.0,0.01609]
[1728463224561,0.20001101,62206.0,62205.0,0.04442446]
[1728463224757,0.20001101,62206.0,62205.0,0.01609]
[1728463225860,0.21401101,62206.0,62205.0,0.01709]
[1728463227174,0.22601101,62206.0,62205.0,0.04660086]
[1728463227461,0.080419,62202.0,62199.0,0.080423]
[1728463227664,0.48039701,62200.0,62199.0,0.080423]
[1728463227862,0.48039701,62200.0,62199.0,0.10925834]
[1728463228764,0.48839701,62200.0,62199.0,0.11025834]
[1728463229558,0.48839701,62200.0,62199.0,0.11125834]
[1728463230065,0.56881901,62200.0,62199.0,0.002]
[1728463230263,0.63483098,62200.0,62199.0,0.002]
[1728463230467,0.63483098,62200.0,62199.0,0.001]
[1728463230676,0.64283098,62200.0,62199.0,0.002]
[1728463230861,0.67613098,62200.0,62199.0,0.002]
[1728463232171,0.11959701,62190.0,62186.0,0.03804388]
[1728463232357,0.34868166,62189.0,62186.0,0.080439]
[1728463232559,0.11959701,62187.0,62186.0,0.10883977]
[1728463232757,0.26824566,62187.0,62186.0,0.10883977]
[1728463233376,0.26824566,62187.0,62186.0,0.12183207]
[1728463233676,0.26824566,62187.0,62186.0,0.12683207]
[1728463233969,0.44188608,62187.0,62186.0,0.12683207]
[1728463234769,0.21889737,62187.0,62186.0,0.12683207]
[1728463234973,0.11959701,62187.0,62186.0,0.12683207]
[1728463235174,0.11959701,62187.0,62186.0,0.04639307]
[1728463235371,0.20003501,62187.0,62186.0,0.04639307]
[1728463236062,0.20003501,62187.0,62186.0,0.03840077]
[1728463236670,0.20003501,62187.0,62186.0,0.0323088]
[1728463236865,0.20003501,62187.0,62186.0,0.01]
[1728463239970,0.39003501,62187.0,62186.0,0.01]
[1728463241972,0.20003701,62186.0,62179.0,0.00241165]
[1728463242173,0.48039701,62180.0,62179.0,0.00241165]
[1728463242569,0.48039701,62180.0,62179.0,0.03075843]
[1728463242974,0.56084401,62180.0,62179.0,0.03075843]
[1728463243271,0.56184401,62180.0,62179.0,0.05175843]
[1728463244470,0.59684401,62180.0,62179.0,0.05175843]
[1728463245373,0.59684401,62180.0,62179.0,0.03975843]
[1728463245572,0.59784401,62180.0,62179.0,0.04375843]
[1728463248579,0.23704401,62180.0,62179.0,0.04375843]
[1728463248883,0.59784401,62180.0,62179.0,0.04375843]
[1728463250775,0.59784401,62180.0,62179.0,0.01541165]
[1728463250983,0.080458,62172.0,62171.0,0.01609]
[1728463251283,0.56085501,62172.0,62171.0,0.01609]
[1728463252276,0.56085501,62172.0,62171.0,0.04481936]
[1728463252879,0.56185501,62172.0,62171.0,0.05381936]